fUST/lending_fUST_20250614
["ID","MTS","AMOUNT","RATE_DAILY","PERIOD"]
[365719708,1749849839809,150.0,0.00024937,90]
[365719709,1749849870755,200.0,0.00023752,120]
[365719714,1749849990789,200.0,0.00023738,120]
[365719715,1749850039086,-162.127284,0.00020469,2]
[365719716,1749850039108,-170.874369,0.00020609,2]
[365719717,1749850039130,-300.0,0.00021094,2]
[365719718,1749850039152,-524.31961225,0.00021094,2]
[365719719,1749850052221,1478.55577966,0.00024938,120]
[365719720,1749850064273,180.79602587,0.00024938,120]
[365719721,1749850069771,2630.17770366,0.00024938,120]
[365719722,1749850070530,629.58591385,0.000246,120]
[365719723,1749850071443,46.15028593,0.00018,2]
[365719724,1749850071467,2799.10585718,0.00018,2]
[365719726,1749850082505,200.0,0.00024938,120]
[365719727,1749850083136,2780.48503412,0.00024938,60]
[365719728,1749850094079,268.90687327,0.00024938,120]
[365719729,1749850096434,543.23823561,0.00024938,120]
[365719730,1749850099868,188.0,0.0002,120]
[365719731,1749850102362,959.57316283,0.00024938,120]
[365719732,1749850102661,913.52868956,0.00024938,120]
[365719733,1749850106029,553.8319092,0.00024938,120]
[365719734,1749850111143,842.61765283,0.00024938,120]
[365719735,1749850112047,686.5378054,0.00024938,120]
[365719736,1749850113442,240.82074905,0.00024938,120]
[365719737,1749850113509,2972.6353429,0.00024938,60]
[365719739,1749850114567,1057.95465024,0.0002,120]
[365719740,1749850114681,241.5193813,0.00024938,120]
[365719741,1749850115358,2454.33404138,0.00024938,120]
[365719742,1749850115845,1021.55814421,0.00024938,120]
[365719743,1749850116161,2000.0,0.00024938,120]
[365719744,1749850116532,3049.69854085,0.00024938,120]
[365719745,1749850116925,1097.78092698,0.00024938,120]
[365719746,1749850117573,3682.85257055,0.00018,2]
[365719747,1749850117666,371.26138746,0.00024108,120]
[365719748,1749850118494,563.34320539,0.0002,2]
[365719749,1749850118674,2594.42900072,0.00024938,120]
[365719750,1749850118903,1793.11320715,0.00024,120]
[365719751,1749850119053,1131.04623125,0.00024938,60]
[365719752,1749850119393,2539.73192913,0.00024938,120]
[365719754,1749850119827,1089.61789946,0.00024938,120]
[365719755,1749850120073,1004.9110189,0.00024938,120]
[365719756,1749850120534,1429.45951155,0.00024938,120]
[365719757,1749850120794,723.36705411,0.00024938,120]
[365719758,1749850120831,463.17151393,0.00024938,120]
[365719760,1749850120907,3043.48146754,0.00024938,120]
[365719763,1749850121458,1559.25999448,0.00024938,120]
[365719764,1749850121782,308.40813296,0.00024938,120]
[365719765,1749850121988,425.46269708,0.00024938,120]
[365719766,1749850122021,1605.11814257,0.00024938,120]
[365719767,1749850122053,611.10112061,0.00024938,120]
[365719768,1749850122207,215.35279212,0.00024938,120]
[365719769,1749850122698,1147.13530826,0.000245,120]
[365719771,1749850122940,1974.20444948,0.00024938,120]
[365719773,1749850123400,316.1562701,0.00024938,120]
[365719774,1749850123472,3147.66735585,0.00024938,120]
[365719775,1749850123506,203.23134132,0.00024938,120]
[365719776,1749850123972,378.33486598,0.00024,120]
[365719777,1749850124842,669.31462086,0.00024938,120]
[365719778,1749850124935,1381.04750715,0.00024938,120]
[365719779,1749850125052,218.09628184,0.0001536,120]
[365719780,1749850125778,532.78400107,0.00024938,120]
[365719781,1749850125901,210.95623421,0.00024938,120]
[365719782,1749850125935,1266.92514201,0.00024658,120]
[365719783,1749850126197,1009.36870409,0.0002,120]
[365719785,1749850126597,218.82135117,0.00024938,120]
[365719787,1749850127252,207.89821366,0.00024938,120]
[365719789,1749850127607,2551.4001075,0.00024938,120]
[365719790,1749850127643,2973.79603652,0.00024938,120]
[365719791,1749850127732,2533.98816794,0.00024938,120]
[365719792,1749850127765,500.35760467,0.0002465,120]
[365719793,1749850127829,229.64800131,0.00024,120]
[365719794,1749850130723,150.0,0.00024938,90]
[365719797,1749850149105,-450.8,0.00020883,2]
[365719798,1749850155215,-3852.6770533,0.00020883,2]
[365719799,1749850155353,-675.68038775,0.00021094,2]
[365719800,1749850155378,-300.0,0.00021094,2]
[365719801,1749850155401,-300.0,0.00021094,2]
[365719802,1749850155422,-460.0,0.00021095,4]
[365719803,1749850155445,-460.0,0.00021095,4]
[365719804,1749850155466,-309.76138066,0.00021095,4]
[365719805,1749850155488,-460.0,0.00021095,4]
[365719806,1749850155509,-387.10551282,0.00021095,2]
[365719837,1749850232310,-72.89448718,0.00021095,2]
[365719839,1749850232320,-460.0,0.00021095,4]
[365719841,1749850232329,-500.0,0.00021095,4]
[365719842,1749850232339,-460.0,0.00021095,4]
[365719843,1749850232348,-14.26379764,0.00021095,2]
[365719844,1749850232360,-1103.24109813,0.00021095,2]
[365719845,1749850232369,-232.360424,0.00021183,2]
[365719846,1749850232378,-155.87630227,0.00021268,2]
[365719847,1749850232389,-300.0,0.00021365,2]
[365719848,1749850232399,-460.0,0.00021366,4]
[365719849,1749850232408,-14.06478771,0.00021366,4]
[365719867,1749850238293,-419.63579363,0.00021366,4]
[365719868,1749850238350,-92.26941866,0.00021366,4]
[365719869,1749850238360,-3175.87,0.00021366,4]
[365719870,1749850238370,-460.0,0.00021366,4]
[365719871,1749850238379,-490.28,0.00021366,4]
[365719872,1749850238389,-212.24623828,0.00021366,4]
[365719873,1749850238398,-430.0,0.00021367,4]
[365719875,1749850238408,-460.0,0.00021367,4]
[365719876,1749850238417,-460.0,0.00021367,4]
[365719877,1749850238426,-440.0,0.00021367,4]
[365719878,1749850238436,-500.0,0.00021367,4]
[365719879,1749850238446,-460.0,0.00021367,4]
[365719880,1749850238455,-440.0,0.00021367,4]
[365719881,1749850238465,-427.02,0.00021367,4]
[365719882,1749850238475,-440.0,0.00021367,4]
[365719883,1749850238485,-729.25,0.00021367,4]
[365719884,1749850238494,-484.11,0.00021367,4]
[365719885,1749850238504,-742.47,0.00021367,4]
[365719886,1749850238513,-460.0,0.00021367,4]
[365719887,1749850238523,-460.0,0.00021367,4]
[365719888,1749850238532,-460.0,0.00021367,4]
[365719889,1749850238542,-269.84357124,0.00021367,4]
[365719890,1749850238552,-460.0,0.00021367,4]
[365719891,1749850238562,-460.0,0.00021367,4]
[365719892,1749850238571,-460.0,0.00021367,4]
[365719893,1749850238582,-460.0,0.00021367,4]
[365719894,1749850238591,-460.0,0.00021367,4]
[365719895,1749850238600,-460.0,0.00021367,4]
[365719896,1749850238610,-540.0255941,0.00021367,4]
[365719897,1749850238620,-460.0,0.00021367,4]
[365719898,1749850238629,-460.0,0.00021367,4]
[365719899,1749850238639,-288.23930659,0.00021367,4]
[365719900,1749850238648,-460.0,0.00021367,4]
[365719901,1749850238658,-683.83,0.00021367,4]
[365719902,1749850238667,-460.0,0.00021367,4]
[365719903,1749850238677,-460.0,0.00021367,4]
[365719904,1749850238687,-460.0,0.00021367,4]
[365719905,1749850238697,-500.0,0.00021368,4]
[365719906,1749850238707,-460.0,0.00021368,4]
[365719907,1749850238716,-460.0,0.00021368,4]
[365719908,1749850238727,-460.0,0.00021368,4]
[365719909,1749850238736,-460.0,0.00021368,4]
[365719910,1749850238747,-430.0,0.00021368,4]
[365719911,1749850238756,-460.0,0.00021368,4]
[365719912,1749850238766,-460.0,0.00021368,4]
[365719913,1749850238775,-871.73,0.00021368,4]
[365719914,1749850238785,-460.0,0.00021368,4]
[365719915,1749850238795,-460.0,0.00021369,2]
[365719916,1749850238804,-460.0,0.00021369,4]
[365719917,1749850238814,-525.97,0.0002164,4]
[365719918,1749850238824,-3175.87,0.0002164,4]
[365719919,1749850238835,-460.0,0.0002164,4]
[365719920,1749850238845,-490.28,0.0002164,4]
[365719921,1749850238855,-460.0,0.00021641,4]
[365719922,1749850238867,-350.0,0.00021641,4]
[365719923,1749850238876,-729.25,0.00021641,4]
[365719924,1749850238886,-484.11,0.00021641,4]
[365719925,1749850238895,-742.47,0.00021641,4]
[365719926,1749850238906,-460.0,0.00021641,4]
[365719927,1749850238915,-460.0,0.00021641,4]
[365719928,1749850238925,-460.0,0.00021641,4]
[365719929,1749850238936,-460.0,0.00021641,4]
[365719930,1749850238947,-460.0,0.00021641,4]
[365719931,1749850238956,-683.83,0.00021641,4]
[365719932,1749850238965,-460.0,0.00021641,4]
[365719933,1749850238975,-460.0,0.00021641,4]
[365719934,1749850238985,-460.0,0.00021641,4]
[365719935,1749850238995,-500.0,0.00021642,4]
[365719936,1749850239005,-460.0,0.00021642,4]
[365719937,1749850239015,-460.0,0.00021642,4]
[365719938,1749850239024,-460.0,0.00021642,4]
[365719939,1749850239034,-470.00230403,0.00021642,4]
[365719940,1749850239044,-460.0,0.00021642,4]
[365719941,1749850239054,-871.73,0.00021642,4]
[365719942,1749850239063,-460.0,0.00021642,4]
[365719943,1749850239073,-460.0,0.00021643,2]
[365719944,1749850239082,-460.0,0.00021643,4]
[365719945,1749850239092,-964.0,0.00021829,2]
[365719946,1749850239101,-1566.06263563,0.000219,6]
[365719947,1749850239110,-964.0,0.000219,2]
[365719948,1749850239120,-14202.45461868,0.0002191,2]
[365719949,1749850239130,-500.0,0.00021913,4]
[365719950,1749850239139,-525.97,0.00021914,4]
[365719951,1749850239149,-3175.87,0.00021914,4]
[365719952,1749850239158,-460.0,0.00021914,4]
[365719953,1749850239167,-490.28,0.00021914,4]
[365719954,1749850239176,-729.25,0.00021915,4]
[365719955,1749850239185,-484.11,0.00021915,4]
[365719956,1749850239196,-742.47,0.00021915,4]
[365719957,1749850239206,-460.0,0.00021915,4]
[365719958,1749850239215,-460.0,0.00021915,4]
[365719959,1749850239225,-460.0,0.00021915,4]
[365719960,1749850239235,-460.0,0.00021915,4]
[365719961,1749850239245,-460.0,0.00021915,4]
[365719962,1749850239255,-683.83,0.00021915,4]
[365719963,1749850239264,-537.68,0.00021915,4]
[365719964,1749850239273,-460.0,0.00021915,4]
[365719965,1749850239283,-460.0,0.00021915,4]
[365719966,1749850239292,-500.0,0.00021916,4]
[365719967,1749850239300,-460.0,0.00021916,4]
[365719968,1749850239310,-460.0,0.00021916,4]
[365719969,1749850239318,-460.0,0.00021916,4]
[365719970,1749850239328,-460.0,0.00021916,4]
[365719971,1749850239337,-871.73,0.00021916,4]
[365719972,1749850239346,-460.0,0.00021916,4]
[365719973,1749850239356,-460.0,0.00021917,2]
[365719974,1749850239365,-569.00980209,0.00021917,4]
[365719975,1749850239375,-964.0,0.00021924,2]
[365719976,1749850239384,-500.0,0.0002197,2]
[365719977,1749850239393,-500.0,0.00021977,2]
[365719978,1749850239402,-964.0,0.00021996,2]
[365719979,1749850239411,-1566.06263555,0.00022003,6]
[365719980,1749850239420,-1566.06263555,0.00022107,6]
[365719981,1749850239430,-500.0,0.00022151,4]
[365719982,1749850239439,-964.0,0.0002216,2]
[365719983,1749850239449,-525.97,0.00022188,4]
[365719984,1749850239458,-3175.87,0.00022188,4]
[365719985,1749850239468,-460.0,0.00022188,4]
[365719986,1749850239477,-490.28,0.00022188,4]
[365719987,1749850239487,-729.25,0.00022189,4]
[365719988,1749850239497,-484.11,0.00022189,4]
[365719989,1749850239507,-742.47,0.00022189,4]
[365719990,1749850239516,-460.0,0.00022189,4]
[365719991,1749850239525,-460.0,0.00022189,4]
[365719992,1749850239535,-683.83,0.00022189,4]
[365719993,1749850239544,-279.76666585,0.00022189,2]
[365719994,1749850239553,-162.58640374,0.00022189,2]
[365719995,1749850239562,-500.0,0.00022189,2]
[365719996,1749850239572,-373.81537826,0.00022189,2]
[365719997,1749850239581,-500.0,0.0002219,4]
[365719998,1749850239590,-460.0,0.0002219,4]
[365719999,1749850239600,-460.0,0.0002219,4]
[365720000,1749850239609,-460.0,0.0002219,4]
[365720001,1749850239619,-460.0,0.0002219,4]
[365720002,1749850239628,-871.73,0.0002219,4]
[365720003,1749850239637,-460.0,0.0002219,4]
[365720004,1749850239645,-1566.06263555,0.0002221,6]
[365720005,1749850239655,-1566.06263555,0.00022314,7]
[365720006,1749850239665,-964.0,0.00022364,2]
[365720007,1749850239674,-1566.06263555,0.00022417,7]
[365720008,1749850239684,-1788.0,0.00022448,2]
[365720009,1749850239695,-16000.0,0.00022453,2]
[365720010,1749850239705,-6494.44931017,0.00022453,2]
[365720011,1749850239714,-155.87630225,0.00022458,2]
[365720012,1749850239724,-525.97,0.00022462,4]
[365720013,1749850239733,-3175.87,0.00022462,4]
[365720014,1749850239743,-460.0,0.00022462,4]
[365720015,1749850239753,-490.28,0.00022462,4]
[365720016,1749850239762,-729.25,0.00022463,4]
[365720018,1749850239772,-484.11,0.00022463,4]
[365720020,1749850239782,-742.47,0.00022463,4]
[365720021,1749850239893,-460.0,0.00022463,4]
[365720023,1749850239906,-460.0,0.00022463,4]
[365720025,1749850239916,-683.83,0.00022463,4]
[365720026,1749850239925,-500.0,0.00022464,4]
[365720027,1749850239936,-460.0,0.00022464,4]
[365720028,1749850239947,-460.0,0.00022464,4]
[365720030,1749850239956,-460.0,0.00022464,4]
[365720032,1749850239966,-460.0,0.00022464,4]
[365720034,1749850239976,-871.73,0.00022464,4]
[365720036,1749850239984,-460.0,0.00022464,4]
[365720038,1749850239994,-500.0,0.00022465,4]
[365720039,1749850240004,-500.0,0.00022466,2]
[365720040,1749850240013,-500.0,0.00022466,2]
[365720041,1749850240023,-500.0,0.00022466,2]
[365720042,1749850240032,-500.0,0.00022466,2]
[365720044,1749850240041,-500.0,0.00022466,2]
[365720046,1749850240050,-331.49994355,0.00022466,2]
[365720048,1749850240059,-546.32981503,0.00022518,2]
[365720049,1749850240070,-1566.06263555,0.00022521,7]
[365720051,1749850240079,-964.0,0.00022527,2]
[365720055,1749850240090,-1788.0,0.0002253,2]
[365720056,1749850240100,-1566.06263555,0.00022624,7]
[365720058,1749850240109,-964.0,0.0002265,2]
[365720059,1749850240119,-1566.06263555,0.00022728,7]
[365720060,1749850240129,-500.0,0.00022729,4]
[365720062,1749850240139,-525.97,0.00022736,4]
[365720064,1749850240148,-3175.87,0.00022736,4]
[365720066,1749850240157,-460.0,0.00022736,4]
[365720068,1749850240167,-490.28,0.00022736,4]
[365720070,1749850240176,-729.25,0.00022737,4]
[365720072,1749850240185,-484.11,0.00022737,4]
[365720074,1749850240196,-742.47,0.00022737,4]
[365720076,1749850240206,-460.0,0.00022737,4]
[365720078,1749850240215,-460.0,0.00022737,4]
[365720080,1749850240225,-683.83,0.00022737,4]
[365720082,1749850240234,-500.0,0.00022738,4]
[365720084,1749850240244,-460.0,0.00022738,4]
[365720086,1749850240253,-460.0,0.00022738,4]
[365720088,1749850240263,-460.0,0.00022738,4]
[365720090,1749850240272,-460.0,0.00022738,4]
[365720091,1749850240281,-871.73,0.00022738,4]
[365720092,1749850240291,-460.0,0.00022738,4]
[365720094,1749850240300,-500.0,0.00022799,4]
[365720096,1749850240310,-500.0,0.00022799,4]
[365720098,1749850240319,-473.08945643,0.00022799,4]
[365720100,1749850240329,-548.5,0.00022821,3]
[365720102,1749850240338,-844.94977992,0.00022821,2]
[365720104,1749850240348,-424.32678023,0.00022821,2]
[365720106,1749850240358,-229.78555783,0.00022821,2]
[365720108,1749850240367,-835.28007164,0.00022821,2]
[365720110,1749850240377,-160.0,0.00022821,2]
[365720112,1749850240386,-160.0,0.00022821,2]
[365720114,1749850240396,-160.0,0.00022821,2]
[365720116,1749850240406,-160.0,0.00022821,2]
[365720119,1749850240416,-213.24139183,0.00022821,2]
[365720120,1749850240425,-160.0,0.00022821,2]
[365720123,1749850240435,-207.4,0.0002283,2]
[365720125,1749850240447,-5000.0,0.0002283,2]
[365720127,1749850240456,-500.0,0.0002283,2]
[365720129,1749850240465,-500.0,0.0002283,2]
[365720131,1749850240475,-500.0,0.0002283,2]
[365720133,1749850240485,-500.0,0.0002283,2]
[365720135,1749850240495,-500.0,0.0002283,2]
[365720137,1749850240504,-500.0,0.0002283,2]
[365720139,1749850240514,-500.0,0.0002283,2]
[365720140,1749850240523,-500.0,0.0002283,2]
[365720143,1749850240533,-500.0,0.0002283,2]
[365720145,1749850240542,-500.0,0.0002283,2]
[365720147,1749850240552,-500.0,0.0002283,2]
[365720149,1749850240561,-500.0,0.0002283,2]
[365720150,1749850240570,-500.0,0.0002283,2]
[365720152,1749850240580,-500.0,0.0002283,2]
[365720155,1749850240590,-500.0,0.0002283,2]
[365720157,1749850240599,-1566.06263555,0.00022831,8]
[365720159,1749850240608,-160.0,0.00022837,2]
[365720160,1749850240618,-206.91064353,0.00022838,2]
[365720162,1749850240627,-182.82,0.0002289,3]
[365720165,1749850240636,-5777.98570128,0.000229,2]
[365720167,1749850240646,-548.48,0.00022912,3]
[365720168,1749850240655,-1788.0,0.00022922,2]
[365720170,1749850240664,-1566.06263555,0.00022934,8]
[365720171,1749850240673,-420.0,0.00022943,2]
[365720172,1749850240683,-500.42355388,0.00022973,2]
[365720173,1749850240692,-220.41741011,0.00022973,2]
[365720174,1749850240701,-500.0,0.00022973,2]
[365720175,1749850240711,-500.0,0.00022973,2]
[365720176,1749850240720,-500.0,0.00022973,2]
[365720177,1749850240729,-500.0,0.00022973,2]
[365720178,1749850240738,-500.0,0.00022973,2]
[365720179,1749850240747,-500.0,0.00022973,2]
[365720180,1749850240756,-500.0,0.00022973,2]
[365720181,1749850240766,-503.33767011,0.00022973,2]
[365720182,1749850240776,-240.58970932,0.00022973,2]
[365720183,1749850240786,-500.0,0.00022973,2]
[365720184,1749850240795,-501.03912607,0.00022973,2]
[365720186,1749850240805,-500.0,0.00022973,2]
[365720187,1749850240815,-500.0,0.00022973,2]
[365720189,1749850240824,-500.0,0.00022973,2]
[365720191,1749850240834,-500.0,0.00022973,2]
[365720193,1749850240844,-500.0,0.00022973,2]
[365720195,1749850240853,-600.0,0.00022973,2]
[365720197,1749850240866,-500.0,0.00022973,2]
[365720198,1749850240875,-503.41766689,0.00022973,2]
[365720200,1749850240885,-500.0,0.00022973,2]
[365720201,1749850240894,-454.63,0.0002299,3]
[365720202,1749850240904,-500.0,0.00022999,2]
[365720203,1749850240914,-218.41027163,0.00022999,2]
[365720205,1749850240923,-1275.92,0.00023,7]
[365720206,1749850240932,-250.94138988,0.00023,2]
[365720208,1749850240944,-10100.30049288,0.00023,3]
[365720209,1749850240953,-141157.4136867,0.00023,20]
[365720210,1749850240963,-3028.05637756,0.00023,2]
[365720211,1749850240973,-1329.14596564,0.00023,2]
[365720212,1749850240986,-160.0,0.00023,3]
[365720213,1749850240999,-424.32678023,0.00023,3]
[365720214,1749850241011,-229.78555783,0.00023,3]
[365720215,1749850241024,-606.12,0.00023002,3]
[365720216,1749850241035,-1212.24,0.00023003,3]
[365720217,1749850241046,-525.97,0.0002301,4]
[365720218,1749850241058,-3175.87,0.0002301,4]
[365720219,1749850241070,-460.0,0.0002301,4]
[365720220,1749850241081,-490.28,0.0002301,4]
[365720221,1749850241094,-729.25,0.00023011,4]
[365720222,1749850241105,-484.11,0.00023011,4]
[365720223,1749850241118,-742.47,0.00023011,4]
[365720224,1749850241131,-460.0,0.00023011,4]
[365720225,1749850241143,-460.0,0.00023011,4]
[365720226,1749850241156,-683.83,0.00023011,4]
[365720227,1749850241168,-460.0,0.00023012,4]
[365720228,1749850241181,-460.0,0.00023012,4]
[365720229,1749850241192,-460.0,0.00023012,4]
[365720230,1749850241203,-460.0,0.00023012,4]
[365720231,1749850241215,-871.73,0.00023012,4]
[365720232,1749850241227,-460.0,0.00023012,4]
[365720233,1749850241238,-1566.06263555,0.00023038,8]
[365720234,1749850241249,-1566.06263555,0.00023141,8]
[365720235,1749850241260,-420.0,0.00023232,2]
[365720236,1749850241270,-1566.06263555,0.00023245,8]
[365720237,1749850241280,-303.06,0.00023277,3]
[365720238,1749850241292,-525.97,0.00023284,4]
[365720239,1749850241303,-3175.87,0.00023284,4]
[365720240,1749850241313,-460.0,0.00023284,4]
[365720241,1749850241323,-490.28,0.00023284,4]
[365720242,1749850241335,-729.25,0.00023285,4]
[365720243,1749850241346,-484.11,0.00023285,4]
[365720244,1749850241358,-742.47,0.00023285,4]
[365720245,1749850241370,-460.0,0.00023285,4]
[365720246,1749850241382,-160.32758916,0.00023285,4]
[365720247,1749850241394,-683.83,0.00023285,4]
[365720248,1749850241405,-500.0,0.00023286,2]
[365720249,1749850241418,-160.0,0.00023286,2]
[365720250,1749850241430,-460.0,0.00023286,4]
[365720251,1749850241442,-460.0,0.00023286,4]
[365720252,1749850241455,-460.0,0.00023286,4]
[365720253,1749850241467,-460.0,0.00023286,4]
[365720254,1749850241477,-871.73,0.00023286,4]
[365720255,1749850241487,-460.0,0.00023286,4]
[365720256,1749850241497,-1566.06263555,0.00023348,9]
[365720257,1749850241507,-5000.0,0.00023378,2]
[365720258,1749850241518,-1566.06263555,0.00023452,9]
[365720259,1749850241531,-1517.29,0.000235,2]
[365720260,1749850241543,-200.53457694,0.00023521,2]
[365720261,1749850241556,-1000.0,0.00023521,2]
[365720262,1749850241569,-1000.0,0.00023521,2]
[365720263,1749850241580,-1000.0,0.00023521,2]
[365720264,1749850241590,-1000.0,0.00023521,2]
[365720265,1749850241600,-1200.0,0.00023521,2]
[365720266,1749850241611,-1000.0,0.00023521,2]
[365720267,1749850241623,-1566.06263555,0.00023555,9]
[365720268,1749850241634,-525.97,0.00023558,4]
[365720269,1749850241645,-3175.87,0.00023558,4]
[365720270,1749850241656,-460.0,0.00023558,4]
[365720271,1749850241666,-490.28,0.00023558,4]
[365720272,1749850241676,-729.25,0.00023559,4]
[365720273,1749850241687,-484.11,0.00023559,4]
[365720274,1749850241700,-742.47,0.00023559,4]
[365720275,1749850241711,-460.0,0.00023559,4]
[365720276,1749850241722,-683.83,0.00023559,4]
[365720277,1749850241733,-460.0,0.0002356,4]
[365720278,1749850241744,-373.21,0.0002356,4]
[365720279,1749850241754,-460.0,0.0002356,4]
[365720280,1749850241765,-460.0,0.0002356,4]
[365720281,1749850241775,-871.73,0.0002356,4]
[365720282,1749850241786,-460.0,0.0002356,4]
[365720283,1749850241797,-1788.0,0.00023575,2]
[365720284,1749850241807,-40330.95894579,0.00023613,7]
[365720285,1749850241819,-155.87630225,0.00023648,2]
[365720286,1749850241830,-1566.06263555,0.00023659,9]
[365720287,1749850241840,-166.50369972,0.00023671,2]
[365720288,1749850241853,-194.42097214,0.00023691,2]
[365720289,1749850241869,-43757.3213423,0.000237,7]
[365720290,1749850241880,-151.0,0.000237,8]
[365720291,1749850241890,-1566.06263555,0.00023762,9]
[365720292,1749850241901,-500.0,0.00023773,2]
[365720293,1749850241912,-601.72777977,0.0002378,2]
[365720294,1749850241923,-162398.43999217,0.0002378,5]
[365720295,1749850241942,-474.55340243,0.0002378,5]
[365720309,1749850243381,-14688.3585545,0.0002378,5]
[365720311,1749850246309,-460.0,0.00021367,4]
[365720312,1749850246321,-254.77268796,0.000229,2]
[365720313,1749850246332,-3026.59199143,0.0002378,5]
[365720314,1749850246365,-3231.43852977,0.0002378,5]
[365720315,1749850246378,-17166.07399913,0.0002378,5]
[365720316,1749850246391,-4949.50460873,0.0002378,5]
[365720317,1749850246404,-1048.79303016,0.0002378,5]
[365720342,1749850282827,2000.0,0.00021848,120]
[365720343,1749850293022,150.5,0.0002328,120]
[365720344,1749850293480,150.5,0.0002327,120]
[365720345,1749850293690,150.5,0.0002328,120]
[365720346,1749850293933,269.93,0.0002326,120]
[365720347,1749850294136,269.99,0.0002327,120]
[365720349,1749850430636,150.0,0.00024938,120]
[365720356,1749850779525,200.0,0.00024934,60]
[365720357,1749850809918,200.0,0.00024657,120]
[365720358,1749850819999,888.55888164,0.00023687,120]
[365720359,1749850850768,182.0,0.0002,2]
[365720370,1749851081489,10000.0,0.0002,30]
[365720372,1749851115082,4000.0,0.0002,30]
[365720373,1749851140291,-259.51324761,0.00020507,2]
[365720374,1749851141755,1400.0,0.0002,10]
[365720375,1749851168372,194.42097214,0.0002,2]
[365720376,1749851219071,170.438706,0.00013699,2]
[365720378,1749851228091,-245.81915512,0.00020507,2]
[365720379,1749851232081,-542.69194541,0.00020507,2]
[365720380,1749851247687,2000.0,0.00020435,120]
[365720382,1749851347147,-901.6,0.00020302,2]
[365720383,1749851355115,-4098.4,0.00020302,2]
[365720384,1749851355138,-458.52136037,0.00020714,2]
[365720385,1749851355167,207.88308874,0.00019693,2]
[365720386,1749851355190,140.09346893,0.00019693,2]
[365720388,1749851357611,5000.0,0.0002,2]
[365720389,1749851359714,150.0,0.000189,2]
[365720464,1749851432744,-4285.92980872,0.00020507,2]
[365720492,1749851438531,-460.0,0.00020507,2]
[365720493,1749851438643,-254.07019128,0.00020507,2]
[365720494,1749851438653,-114.43088113,0.00020714,2]
[365720495,1749851438663,-300.0,0.00021363,2]
[365720497,1749851438673,-300.0,0.00021364,2]
[365720498,1749851438683,-414.81838807,0.00021364,4]
[365720499,1749851438692,-477.0,0.00021364,4]
[365720500,1749851438702,-2922.55,0.00021364,4]
[365720501,1749851438711,-460.0,0.00021364,4]
[365720502,1749851438721,-486.1,0.00021364,4]
[365720503,1749851438730,-460.0,0.00021364,4]
[365720504,1749851438740,-460.0,0.00021364,4]
[365720505,1749851438750,-420.0,0.00021365,4]
[365720506,1749851438761,-460.0,0.00021365,4]
[365720507,1749851438771,-440.0,0.00021365,4]
[365720508,1749851438781,-410.0,0.00021365,4]
[365720509,1749851438790,-460.0,0.00021365,4]
[365720510,1749851438800,-460.0,0.00021365,4]
[365720511,1749851438809,-440.0,0.00021365,4]
[365720512,1749851438818,-440.0,0.00021365,4]
[365720513,1749851438827,-460.0,0.00021365,4]
[365720514,1749851438837,-460.0,0.00021365,4]
[365720515,1749851438847,-420.0,0.00021365,4]